fUSD/lending_fUSD_20260307
["ID","MTS","AMOUNT","RATE_DAILY","PERIOD"]
[407906632,1772908233715,-500.0,0.00016799,2]
[407906633,1772908233725,-500.0,0.00016799,2]
[407906634,1772908233735,-500.0,0.00016799,2]
[407906635,1772908233745,-500.0,0.00016799,2]
[407906636,1772908233756,-500.0,0.00016799,2]
[407906637,1772908233767,-500.0,0.00016799,2]
[407906638,1772908233778,-500.0,0.00016799,2]
[407906639,1772908233787,-500.0,0.00016799,2]
[407906640,1772908233797,-500.0,0.00016799,2]
[407906641,1772908233807,-500.0,0.00016799,2]
[407906642,1772908233816,-500.0,0.00016799,2]
[407906643,1772908233826,-338.30961552,0.00016799,2]
[407906644,1772908233835,-500.0,0.00016799,2]
[407906645,1772908233846,-500.0,0.00016799,2]
[407906646,1772908233858,-500.0,0.00016799,2]
[407906647,1772908233869,-500.0,0.00016799,2]
[407906648,1772908233879,-500.0,0.00016799,2]
[407906649,1772908233889,-500.0,0.00016799,2]
[407906650,1772908233899,-500.0,0.00016799,2]
[407906651,1772908233910,-500.0,0.00016799,2]
[407906652,1772908233919,-500.0,0.00016799,2]
[407906653,1772908233930,-500.0,0.00016799,2]
[407906654,1772908233940,-500.0,0.00016799,2]
[407906655,1772908233950,-500.0,0.00016799,2]
[407906656,1772908233960,-500.0,0.00016799,2]
[407906657,1772908233972,-500.0,0.00016799,2]
[407906658,1772908233985,-500.0,0.00016799,2]
[407906659,1772908233995,-183.83096155,0.00016799,2]
[407906660,1772908234005,-500.0,0.00016799,2]
[407906661,1772908234014,-513.10166881,0.00016799,2]
[407906662,1772908234023,-500.0,0.00016799,2]
[407906663,1772908234032,-500.0,0.00016799,2]
[407906664,1772908234043,-500.0,0.00016799,2]
[407906665,1772908234053,-483.51,0.00017049,2]
[407906666,1772908234062,-21477.26993219,0.00017059,2]
[407906667,1772908234071,-765.57,0.00017064,2]
[407906668,1772908234084,-1554.3921186,0.00017161,2]
[407906669,1772908234095,-1604.07,0.00017231,2]
[407906670,1772908234104,-184.53,0.00017276,2]
[407906671,1772908234114,-292.18,0.00017294,2]
[407906672,1772908234123,-765.57,0.00017338,2]
[407906673,1772908234133,-21477.26993219,0.00017414,2]
[407906674,1772908234142,-501.17686871,0.00017453,2]
[407906675,1772908234152,-765.57,0.00017612,2]
[407906676,1772908234161,-1554.3921186,0.00017617,2]
[407906677,1772908234171,-1000.0,0.00017627,2]
[407906678,1772908234184,-166.66,0.0001773,2]
[407906679,1772908234193,-21477.26993219,0.00017769,2]
[407906680,1772908234203,-288.67580439,0.00017808,2]
[407906681,1772908234214,-536.41882377,0.00017886,2]
[407906682,1772908234227,-229.15117623,0.00017886,2]
[407906683,1772908234236,-231.36230972,0.00018074,2]
[407906684,1772908234252,-831.64957871,0.00018074,2]
[407906685,1772908234269,-491.38023017,0.00018074,2]
[407906686,1772908234280,-2281.09472897,0.00018082,7]
[407906687,1772908234306,-118.90527103,0.00018082,7]
[407906688,1772908234317,-1776.88399372,0.00018082,7]
[407906689,1772908234330,-623.11600628,0.00018082,7]
[407906690,1772908234340,-1000.0,0.00018082,7]
[407906691,1772908234351,-166.66,0.00018104,2]
[407906692,1772908234360,-483.51,0.00018114,2]
[407906693,1772908234369,-1259.51399372,0.00018124,2]
[407906694,1772908234381,-723.749995,0.00018124,2]
[407906698,1772908237675,-5486.62137138,0.00018124,2]
[407906714,1772908239991,-14007.38457209,0.00018124,2]
[407906715,1772908240000,-765.57684899,0.0001816,2]
[407906716,1772908240010,-755.38,0.00018311,2]
[407906717,1772908240020,-166.66,0.00018477,2]
[407906718,1772908240029,-2024.94,0.00018478,2]
[407906720,1772908240039,-21477.26993219,0.0001848,2]
[407906721,1772908240048,-1554.3921186,0.0001853,2]
[407906722,1772908240058,-2000.0,0.00018571,2]
[407906723,1772908240067,-3845.83,0.00018734,2]
[407906724,1772908240077,-21477.26993219,0.00018835,2]
[407906725,1772908240086,-166.66,0.0001885,2]
[407906726,1772908240095,-1554.3921186,0.00018987,2]
[407906727,1772908240104,-500.0,0.00018999,2]
[407906728,1772908240114,-693.3919763,0.00018999,2]
[407906729,1772908240124,-300.19989737,0.00018999,2]
[407906730,1772908240133,-693.3919763,0.00018999,2]
[407906731,1772908240142,-174.61919141,0.00018999,2]
[407906732,1772908240151,-693.3919763,0.00018999,2]
[407906733,1772908240160,-500.0,0.00018999,2]
[407906734,1772908240170,-500.0,0.00018999,2]
[407906735,1772908240183,-500.0,0.00018999,2]
[407906736,1772908240193,-500.0,0.00018999,2]
[407906737,1772908240203,-500.0,0.00018999,2]
[407906738,1772908240215,-500.0,0.00018999,2]
[407906739,1772908240224,-500.0,0.00018999,2]
[407906740,1772908240233,-500.0,0.00018999,2]
[407906741,1772908240242,-500.0,0.00018999,2]
[407906742,1772908240253,-500.0,0.00018999,2]
[407906743,1772908240262,-500.0,0.00018999,2]
[407906744,1772908240271,-200.0,0.00019016,2]
[407906745,1772908240280,-719.04747942,0.00019054,2]
[407906746,1772908240290,-745.65223616,0.00019109,2]
[407906747,1772908240299,-773.2413689,0.00019164,2]
[407906748,1772908240308,-483.51,0.00019168,2]
[407906750,1772908240317,-356.16868786,0.00019168,2]
[407906751,1772908240327,-2400.0,0.00019178,7]
[407906753,1772908240339,-2400.0,0.00019178,7]
[407906754,1772908240349,-1000.0,0.00019178,7]
[407906755,1772908240358,-150.0,0.00019178,2]
[407906756,1772908240368,-20229.87,0.00019178,2]
[407906757,1772908240377,-21477.26993219,0.0001919,2]
[407906758,1772908240387,-801.85129955,0.00019219,2]
[407906759,1772908240396,-166.66,0.00019223,2]
[407906760,1772908240406,-500.0,0.00019261,2]
[407906761,1772908240415,-831.51979763,0.00019274,2]
[407906762,1772908240424,-862.28603014,0.00019329,2]
[407906763,1772908240434,-847.0,0.0001936,2]
[407906764,1772908240443,-2804.0,0.0001936,2]
[407906765,1772908240453,-894.19061326,0.00019384,2]
[407906766,1772908240462,-150.0,0.00019385,2]
[407906767,1772908240471,-263.359677,0.00019387,2]
[407906768,1772908240480,-927.27566595,0.00019439,2]
[407906769,1772908240489,-1554.3921186,0.00019443,2]
[407906770,1772908240498,-5000.0,0.00019447,2]
[407906771,1772908240507,-250.0,0.00019457,2]
[407906772,1772908240517,-961.58486559,0.00019494,2]
[407906773,1772908240526,-293.6087821,0.00019529,2]
[407906774,1772908240538,-483.51,0.00019535,2]
[407906775,1772908240548,-21477.26993219,0.00019545,2]
[407906776,1772908240559,-500.0,0.00019547,2]
[407906777,1772908240569,-181.08010149,0.00019547,2]
[407906778,1772908240578,-827.50680267,0.00019547,2]
[407906779,1772908240587,-997.16350561,0.00019549,2]
[407906780,1772908240597,-166.66,0.00019597,2]
[407906781,1772908240606,-2316.21557128,0.000196,2]
[407906782,1772908240615,-1000.0,0.0001961,2]
[407906783,1772908240625,-10661.5164,0.0001961,2]
[407906784,1772908240635,-168.0,0.0001962,2]
[407906785,1772908240644,-378.31004019,0.00019625,2]
[407906786,1772908240654,-350.0,0.00019635,2]
[407906787,1772908240663,-755.38,0.00019681,2]
[407906788,1772908240672,-500.0,0.00019699,2]
[407906789,1772908240681,-200.0,0.00019699,2]
[407906790,1772908240690,-500.0,0.00019699,2]
[407906791,1772908240700,-500.0,0.00019699,2]
[407906792,1772908240711,-150.0,0.00019699,2]
[407906793,1772908240721,-150.0,0.00019699,2]
[407906794,1772908240731,-179.48565848,0.00019699,2]
[407906795,1772908240742,-500.0,0.00019699,2]
[407906796,1772908240752,-500.0,0.00019699,2]
[407906797,1772908240762,-150.0,0.00019699,2]
[407906798,1772908240773,-150.0,0.00019699,2]
[407906799,1772908240782,-150.0,0.00019699,2]
[407906800,1772908240793,-500.0,0.00019699,2]
[407906801,1772908240803,-150.0,0.00019699,2]
[407906802,1772908240812,-164.64776858,0.00019699,2]
[407906803,1772908240822,-180.0,0.00019699,2]
[407906804,1772908240831,-250.0,0.00019699,2]
[407906805,1772908240840,-150.0,0.00019699,2]
[407906806,1772908240850,-150.0,0.00019699,2]
[407906807,1772908240859,-150.0,0.00019699,2]
[407906808,1772908240868,-500.0,0.00019699,2]
[407906809,1772908240878,-500.0,0.00019699,2]
[407906810,1772908240889,-500.0,0.00019699,2]
[407906811,1772908240898,-3111.94,0.00019726,2]
[407906812,1772908240909,-3111.94,0.00019726,2]
[407906813,1772908240918,-3111.94,0.00019726,2]
[407906814,1772908240928,-3111.94,0.00019726,2]
[407906815,1772908240938,-5177.68,0.00019726,2]
[407906816,1772908240949,-500.0,0.00019754,2]
[407906817,1772908240959,-500.0,0.00019754,2]
[407906818,1772908240969,-500.0,0.00019754,2]
[407906819,1772908240980,-150.0,0.00019754,2]
[407906820,1772908240991,-150.0,0.00019754,2]
[407906821,1772908241000,-500.0,0.00019754,2]
[407906822,1772908241009,-500.0,0.00019754,2]
[407906823,1772908241019,-150.0,0.00019754,2]
[407906824,1772908241028,-150.0,0.00019754,2]
[407906825,1772908241037,-500.0,0.00019754,2]
[407906826,1772908241047,-200.0,0.00019754,2]
[407906827,1772908241057,-500.0,0.00019754,2]
[407906828,1772908241066,-500.0,0.00019754,2]
[407906829,1772908241075,-500.0,0.00019754,2]
[407906830,1772908241084,-350.0,0.00019755,2]
[407906831,1772908241095,-500.0,0.00019773,2]
[407906832,1772908241105,-153.01021088,0.00019783,3]
[407906833,1772908241115,-500.0,0.00019799,2]
[407906834,1772908241125,-500.0,0.00019799,2]
[407906835,1772908241135,-1551.20636,0.000198,2]
[407906836,1772908241144,-1551.20637,0.000198,2]
[407906837,1772908241153,-500.0,0.00019809,2]
[407906838,1772908241164,-500.0,0.00019809,2]
[407906839,1772908241178,-500.0,0.00019809,2]
[407906840,1772908241189,-150.0,0.00019809,2]
[407906841,1772908241198,-150.0,0.00019809,2]
[407906842,1772908241209,-500.0,0.00019809,2]
[407906843,1772908241218,-500.0,0.00019809,2]
[407906844,1772908241228,-150.0,0.00019809,2]
[407906845,1772908241237,-150.0,0.00019809,2]
[407906846,1772908241246,-500.0,0.00019809,2]
[407906847,1772908241255,-500.0,0.00019809,2]
[407906848,1772908241265,-500.0,0.00019809,2]
[407906849,1772908241274,-500.0,0.00019809,2]
[407906850,1772908241283,-1000.0,0.00019837,2]
[407906851,1772908241292,-200.0,0.0001984,2]
[407906852,1772908241301,-2511.845,0.0001985,2]
[407906853,1772908241311,-169.131,0.0001985,2]
[407906854,1772908241320,-483.51,0.00019853,2]
[407906855,1772908241330,-500.0,0.00019863,2]
[407906856,1772908241338,-500.0,0.00019863,2]
[407906857,1772908241347,-500.0,0.00019863,2]
[407906858,1772908241356,-150.0,0.00019863,2]
[407906859,1772908241366,-150.0,0.00019863,2]
[407906860,1772908241375,-500.0,0.00019863,2]
[407906861,1772908241385,-350.0,0.00019863,2]
[407906862,1772908241395,-250.0,0.00019863,2]
[407906863,1772908241404,-158.0,0.00019863,2]
[407906864,1772908241413,-500.0,0.00019863,2]
[407906865,1772908241422,-500.0,0.00019863,2]
[407906866,1772908241431,-500.0,0.00019863,2]
[407906867,1772908241441,-500.0,0.00019863,2]
[407906868,1772908241450,-163.67805044,0.00019873,2]
[407906869,1772908241459,-500.0,0.00019877,2]
[407906870,1772908241468,-500.0,0.00019883,2]
[407906871,1772908241478,-500.0,0.00019883,2]
[407906872,1772908241487,-210.83794715,0.00019889,2]
[407906873,1772908241496,-2539.0,0.0001989,2]
[407906874,1772908241505,-10000.0,0.0001989,2]
[407906875,1772908241514,-441.28,0.00019897,2]
[407906876,1772908241523,-2056.78958302,0.00019899,2]
[407906877,1772908241532,-153.01021088,0.000199,3]
[407906878,1772908241541,-3112.77896616,0.000199,2]
[407906879,1772908241551,-5800.0,0.000199,2]
[407906880,1772908241560,-1554.3921186,0.000199,2]
[407906881,1772908241569,-216.11417873,0.000199,2]
[407906882,1772908241578,-21477.26993219,0.000199,2]
[407906883,1772908241587,-8745.07025799,0.000199,2]
[407906884,1772908241597,-3179.0,0.000199,2]
[407906885,1772908241606,-500.0,0.00019918,2]
[407906886,1772908241615,-500.0,0.00019918,2]
[407906887,1772908241624,-250.0,0.00019918,2]
[407906888,1772908241633,-250.0,0.00019918,2]
[407906889,1772908241643,-459.80865041,0.00019918,2]
[407906890,1772908241651,-264.04850966,0.00019918,2]
[407906891,1772908241661,-500.0,0.00019918,2]
[407906892,1772908241670,-500.0,0.00019918,2]
[407906893,1772908241679,-1000.0,0.0001995,2]
[407906894,1772908241689,-717.0,0.00019959,5]
[407906895,1772908241698,-568.47936844,0.00019973,2]
[407906896,1772908241707,-250.0,0.00019973,2]
[407906897,1772908241716,-400.0,0.00019973,2]
[407906898,1772908241725,-500.0,0.00019973,2]
[407906899,1772908241734,-150.0,0.00019973,2]
[407906900,1772908241744,-177.28481416,0.00019997,2]
[407906901,1772908241753,-151.0,0.00019997,2]
[407906902,1772908241762,-151.0,0.00019997,2]
[407906903,1772908241772,-154314.29380598,0.00019998,2]
[407906904,1772908241782,-300.0,0.00019999,2]
[407906905,1772908241791,-300.0,0.00019999,2]
[407906906,1772908242088,-500.0,0.00019999,2]
[407906907,1772908242098,-500.0,0.00019999,2]
[407906908,1772908242107,-482.9304895,0.00019999,2]
[407906909,1772908242118,-500.0,0.00019999,2]
[407906910,1772908242128,-165.04429841,0.00019999,2]
[407906911,1772908242138,-500.0,0.00019999,2]
[407906912,1772908242147,-273.57968627,0.00019999,2]
[407906913,1772908242157,-433.35354657,0.00019999,2]
[407906914,1772908242166,-207.16558289,0.00019999,2]
[407906915,1772908242179,-1000.0,0.0002,7]
[407906916,1772908242189,-1374582.9235419,0.0002,2]
[407906917,1772908242239,-961.69544861,0.0002,2]
[407906918,1772908242252,-25303.11905375,0.0002,2]
[407906927,1772908242567,-176.7017974,0.0001995,15]
[407906928,1772908242578,-247.6926096,0.0002,2]
[407906938,1772908245310,-176.7017974,0.0001995,15]
[407906939,1772908245324,-176.7017974,0.0001995,15]
[407906940,1772908245338,-619.71965577,0.0002,2]
[407906941,1772908245354,-229405.54125908,0.0002,2]
[407906942,1772908245369,-276488.27899518,0.0002,2]
[407906943,1772908245422,-411.93999999,0.0002,2]
[407906944,1772908245438,-789.895855,0.0002,2]
[407908004,1772908371659,1000.0,0.0003,120]
[407908005,1772908383160,1000.0,0.00031,120]
[407908006,1772908392040,1000.0,0.00031,120]
[407908008,1772908401694,1000.0,0.0003,120]
[407908009,1772908410554,1000.0,0.00031,120]
[407908011,1772908448230,10000.0,0.00031,120]
[407908012,1772908455146,10000.0,0.00031,120]
[407908014,1772908465484,10000.0,0.00031,120]
[407908015,1772908469690,10000.0,0.00031,120]
[407908016,1772908477146,10000.0,0.00031,120]
[407908017,1772908484373,10000.0,0.00031,120]
[407908018,1772908490003,10000.0,0.00031,120]
[407908019,1772908506319,7093.0,0.00031,120]
[407908034,1772908997489,605.22,0.00019178,30]
[407908039,1772909137332,152.96,7.866e-05,2]
[407908040,1772909137549,152.96,9.44e-05,2]
[407908041,1772909137746,152.96,0.00011013,2]
[407908044,1772909198099,-152.96,0.00012586,2]
[407908045,1772909198122,-44.00992061,0.0001416,2]
[407908046,1772909202570,-108.95007939,0.0001416,2]
[407908047,1772909202597,-250.0,0.00015,2]
[407908048,1772909202620,-274.0,0.00015,2]
[407908049,1772909202642,-152.96,0.00015733,2]
[407908050,1772909202665,-3240.0,0.00015792,2]
[407908051,1772909202688,-176.69177669,0.00015829,2]
[407908052,1772909202710,-2000.0,0.0001589,2]
[407908053,1772909202733,-250.0,0.00015929,2]
[407908054,1772909202755,-1200.0,0.00015963,2]
[407908055,1772909202778,-670.96,0.00015964,2]
[407908056,1772909202802,-1600.0,0.00015964,2]
[407908057,1772909202824,-670.96,0.00016363,2]
[407908058,1772909202846,-228.36,0.00016438,2]
[407908059,1772909202869,-550.0,0.00016499,2]
[407908060,1772909202890,-300.0,0.00016499,2]
[407908061,1772909202914,-150.99521092,0.000165,2]
[407908062,1772909202936,-2500.0,0.000165,2]
[407908063,1772909202959,-2500.0,0.000165,2]
[407908064,1772909202981,-2500.0,0.000165,2]
[407908065,1772909203003,-2500.0,0.000165,2]
[407908066,1772909203024,-2500.0,0.000165,2]
[407908067,1772909203047,-176.69177669,0.00016503,2]
[407908068,1772909203070,-2500.0,0.00016504,2]
[407908069,1772909203093,-11126.01733519,0.00016589,2]
[407908070,1772909203116,-1020.53564897,0.00016589,2]
[407908071,1772909203137,-290.1,0.00016594,2]
[407908072,1772909203159,-290.1,0.00016594,2]
[407908073,1772909203180,-290.1,0.00016594,2]
[407908074,1772909203202,-290.1,0.00016594,2]
[407908075,1772909203225,-151.0,0.00016594,2]
[407908076,1772909203248,-151.0,0.00016594,2]
[407908077,1772909203272,-151.0,0.00016594,2]
[407908078,1772909203295,-151.0,0.00016594,2]
[407908079,1772909203317,-151.0,0.00016594,2]
[407908080,1772909203341,-151.0,0.00016594,2]
[407908081,1772909203364,-151.0,0.00016594,2]
[407908082,1772909203388,-151.0,0.00016594,2]
[407908083,1772909203416,-151.0,0.00016594,2]
[407908084,1772909203441,-151.0,0.00016594,2]
[407908085,1772909203466,-151.0,0.00016594,2]
[407908086,1772909203488,-293.6087821,0.00016594,2]
[407908087,1772909203509,-153.01021088,0.00016599,2]
[407908088,1772909203532,-151.0,0.00016601,2]
[407908089,1772909203556,-255.19,0.00016603,2]
[407908090,1772909203578,-500.0,0.00016603,2]
[407908091,1772909203605,-500.0,0.00016603,2]
[407908092,1772909203629,-500.0,0.00016603,2]
[407908093,1772909203655,-500.0,0.00016603,2]
[407908094,1772909203680,-500.0,0.00016603,2]
[407908095,1772909203717,-500.0,0.00016603,2]
[407908096,1772909203744,-500.0,0.00016603,2]
[407908097,1772909203771,-500.0,0.00016603,2]
[407908098,1772909203799,-500.0,0.00016603,2]
[407908099,1772909203826,-500.0,0.00016603,2]
[407908100,1772909203853,-500.0,0.00016603,2]
[407908101,1772909203882,-500.0,0.00016603,2]
[407908102,1772909203911,-500.0,0.00016603,2]
[407908103,1772909203940,-500.0,0.00016603,2]
[407908104,1772909203966,-500.0,0.00016603,2]
[407908105,1772909203992,-500.0,0.00016603,2]
[407908106,1772909204019,-500.0,0.00016603,2]
[407908107,1772909204045,-500.0,0.00016603,2]
[407908108,1772909204071,-445.82667875,0.00016603,2]
[407908109,1772909204096,-500.0,0.00016603,2]
[407908110,1772909204122,-500.0,0.00016603,2]
[407908111,1772909204149,-500.0,0.00016603,2]
[407908112,1772909204175,-500.0,0.00016603,2]
[407908113,1772909204201,-500.0,0.00016603,2]
[407908114,1772909204228,-500.0,0.00016603,2]
[407908115,1772909204256,-500.0,0.00016603,2]
[407908116,1772909204282,-500.0,0.00016603,2]
[407908117,1772909204308,-500.0,0.00016603,2]
[407908118,1772909204334,-500.0,0.00016603,2]
[407908119,1772909204360,-500.0,0.00016603,2]
[407908120,1772909204386,-500.0,0.00016603,2]
[407908121,1772909204419,-551.06669699,0.00016603,2]
[407908122,1772909204447,-500.0,0.00016603,2]
[407908123,1772909204475,-500.0,0.00016603,2]
[407908124,1772909204502,-500.0,0.00016603,2]
[407908125,1772909204528,-500.0,0.00016603,2]
[407908126,1772909204553,-500.0,0.00016603,2]
[407908127,1772909204577,-500.0,0.00016603,2]
[407908128,1772909204604,-500.0,0.00016603,2]
[407908129,1772909204629,-500.0,0.00016603,2]
[407908130,1772909204656,-500.0,0.00016603,2]
[407908131,1772909204683,-500.0,0.00016603,2]
[407908132,1772909204712,-500.0,0.00016603,2]
[407908133,1772909204739,-500.0,0.00016603,2]
[407908134,1772909204765,-500.0,0.00016603,2]
[407908135,1772909204794,-500.0,0.00016603,2]
[407908136,1772909204822,-500.0,0.00016603,2]
[407908137,1772909204852,-500.0,0.00016603,2]
[407908138,1772909204878,-500.0,0.00016603,2]
[407908139,1772909204906,-500.0,0.00016603,2]
[407908140,1772909204932,-500.0,0.00016603,2]
[407908141,1772909204958,-500.0,0.00016603,2]
[407908142,1772909204984,-500.0,0.00016603,2]
[407908143,1772909205010,-500.0,0.00016603,2]
[407908144,1772909205039,-500.0,0.00016603,2]
[407908145,1772909205066,-500.0,0.00016603,2]
[407908146,1772909205092,-500.0,0.00016603,2]
[407908148,1772909228887,-59849.77580343,0.00016604,2]
[407908158,1772909431510,-1500.0,0.000158,2]
[407908159,1772909431520,-591.67,0.00015849,2]
[407908160,1772909431533,-200.40401098,0.00016413,2]
[407908161,1772909431543,-500.0,0.00016425,2]
[407908162,1772909431553,-190.83,0.00016438,3]
[407908163,1772909431562,-500.0,0.00016476,2]
[407908164,1772909431571,-150.0,0.00016504,2]
[407908165,1772909431581,-2500.0,0.00016504,2]
[407908166,1772909431590,-1200.0,0.00016513,2]
[407908167,1772909431600,-147.84496222,0.00016514,2]
[407908168,1772909431612,-2107.37240693,0.00016514,2]
[407908169,1772909431623,-244.78263085,0.00016514,2]
[407908170,1772909431632,-600.0,0.00016514,2]
[407908171,1772909431642,-114.2838236,0.00016514,2]
[407908172,1772909431653,-385.7161764,0.00016514,2]
[407908173,1772909431662,-2105.88150591,0.00016547,2]
[407908174,1772909431673,-316.11449079,0.00016547,2]
[407908175,1772909431684,-1075.43,0.00016547,2]
[407908176,1772909431699,-951.09995283,0.00016547,2]
[407908188,1772909432947,-0.73343216,0.00016547,2]
[407908189,1772909432959,-675.0,0.00016547,2]
[407908190,1772909432976,-6501.35346619,0.00016547,2]
[407908191,1772909432986,-2500.0,0.00016566,2]
[407908192,1772909432996,-4997.41242069,0.00016589,2]
[407908193,1772909433007,-290.13,0.00016594,2]
[407908194,1772909433016,-151.0,0.00016594,2]
[407908195,1772909433026,-500.0,0.00016594,2]
[407908196,1772909433036,-150.0,0.00016603,2]
[407908197,1772909433046,-300.0,0.00016603,2]
[407908198,1772909433056,-3333.6162459,0.00016604,2]
[407908199,1772909433066,-53294.8713166,0.00016604,2]
[407908200,1772909433077,-904.11328782,0.00016604,2]
[407908201,1772909433088,-482.5225775,0.00016604,2]
[407908202,1772909433100,-4263.18001269,0.00016604,2]
[407908207,1772909437558,-18680.0,0.00016604,2]
[407908209,1772909437612,-587.58333738,0.00016604,2]
[407908210,1772909437666,-271.59299503,0.00016604,2]
[407908211,1772909437720,-559.53366536,0.00016604,2]
[407908212,1772909437774,-2225.31323038,0.00016604,2]
[407908213,1772909437786,-654.6,0.00016604,2]
[407908214,1772909437832,-67998.25710857,0.00016604,2]
[407908219,1772909439972,-275.77490633,0.00016604,2]
[407908220,1772909439985,-272778.53925891,0.00016604,2]
[407908221,1772909439995,-600.0,0.00016647,2]
[407908222,1772909440005,-502.82313972,0.00016673,2]
[407908223,1772909440015,-500.0,0.00016673,2]
[407908224,1772909440024,-500.0,0.00016673,2]
[407908225,1772909440034,-600.0,0.00016682,2]
[407908226,1772909440045,-151.0,0.00016696,2]
[407908227,1772909440057,-173022.3412,0.00016699,2]
[407908228,1772909440068,-1256.67,0.00016705,2]
[407908229,1772909440080,-166.49,0.00016712,2]
[407908230,1772909440089,-670.96,0.00016762,2]
[407908231,1772909440104,-500.0,0.00016799,2]
[407908232,1772909440113,-500.0,0.00016799,2]
[407908233,1772909440124,-500.0,0.00016799,2]
[407908234,1772909440134,-500.0,0.00016799,2]
[407908235,1772909440144,-500.0,0.00016799,2]
[407908236,1772909440153,-500.0,0.00016799,2]
[407908237,1772909440163,-500.0,0.00016799,2]
[407908238,1772909440174,-500.0,0.00016799,2]
[407908239,1772909440184,-500.0,0.00016799,2]
[407908240,1772909440194,-500.0,0.00016799,2]
[407908241,1772909440204,-500.0,0.00016799,2]
[407908242,1772909440214,-500.0,0.00016799,2]
[407908243,1772909440225,-500.0,0.00016799,2]
[407908244,1772909440235,-500.0,0.00016799,2]
[407908246,1772909440244,-394.18608988,0.00016799,2]
[407908248,1772909440254,-500.0,0.00016799,2]
[407908249,1772909440263,-500.0,0.00016799,2]
[407908250,1772909440274,-441.28,0.00016799,2]
[407908251,1772909440284,-255.19,0.00016877,2]
[407908252,1772909440294,-11625.61284782,0.0001692,2]
[407908253,1772909440303,-4997.41242065,0.00016957,2]
[407908254,1772909440313,-300.0,0.00017,2]
[407908255,1772909440324,-3213.59,0.00017101,2]
[407908256,1772909440334,-696.17,0.00017101,2]
[407908257,1772909440345,-166.66,0.00017122,2]
[407908258,1772909440355,-255.19684899,0.00017151,2]
[407908259,1772909440365,-670.96,0.00017161,2]
[407908260,1772909440374,-11625.61284782,0.00017292,2]
[407908261,1772909440383,-4997.41242065,0.00017325,2]
[407908262,1772909440393,-200.0,0.00017381,2]
[407908263,1772909440402,-200.0,0.00017381,2]
[407908264,1772909440412,-150.0,0.00017434,2]
[407908265,1772909440421,-1256.67,0.0001754,2]
[407908266,1772909440431,-670.96,0.0001756,2]
[407908267,1772909440440,-164.86,0.00017639,2]
[407908268,1772909440450,-11625.61284782,0.00017665,2]
[407908269,1772909440462,-4997.41242065,0.00017693,2]
[407908270,1772909440474,-150.0,0.00017771,2]
[407908271,1772909440488,-263.359677,0.00017773,2]
[407908272,1772909440499,-1600.0,0.0001796,2]
[407908273,1772909440508,-11625.61284782,0.00018037,2]
[407908274,1772909440519,-196.03443072,0.0001805,2]
[407908275,1772909440528,-300.0,0.00018054,2]
[407908276,1772909440538,-500.0,0.00018054,2]
[407908277,1772909440549,-4997.41242065,0.00018061,2]
[407908278,1772909440559,-2500.0,0.00018082,2]
[407908279,1772909440568,-600.0,0.00018082,2]
[407908280,1772909440578,-500.0,0.00018082,2]
[407908281,1772909440587,-2200.0,0.00018082,7]
[407908282,1772909440596,-2200.0,0.00018082,7]
[407908283,1772909440607,-900.0,0.00018082,7]